fUST/lending_fUST_20250429
["ID","MTS","AMOUNT","RATE_DAILY","PERIOD"]
[359271852,1745881848670,-300.0,0.00020808,2]
[359271854,1745881848682,-400.0,0.00020808,2]
[359271856,1745881848691,-300.0,0.00020808,2]
[359271858,1745881848700,-400.0,0.00020808,2]
[359271860,1745881848709,-760.86,0.00020808,2]
[359271862,1745881848719,-400.0,0.00020808,2]
[359271864,1745881848728,-300.0,0.00020808,2]
[359271866,1745881848737,-413.38,0.00020808,2]
[359271868,1745881848746,-400.0,0.00020808,2]
[359271870,1745881848757,-400.0,0.00020808,2]
[359271872,1745881848766,-400.0,0.00020808,2]
[359271874,1745881848776,-400.0,0.00020808,2]
[359271876,1745881848785,-277.56668162,0.00020808,2]
[359271877,1745881848794,-400.0,0.00020808,2]
[359271880,1745881848804,-400.0,0.00020808,2]
[359271881,1745881848813,-501.53,0.00020808,2]
[359271883,1745881848823,-400.0,0.00020808,2]
[359271885,1745881848832,-417.54,0.00020808,2]
[359271887,1745881848842,-400.0,0.00020808,2]
[359271889,1745881848851,-294.274334,0.0002081,2]
[359271891,1745881848861,-1249.89,0.0002081,2]
[359271893,1745881848871,-836.4,0.0002081,2]
[359271895,1745881848880,-400.0,0.0002081,2]
[359271897,1745881848890,-363.21388376,0.0002081,2]
[359272012,1745881850732,-2160.46611624,0.0002081,2]
[359272013,1745881850742,-400.0,0.0002081,2]
[359272014,1745881850752,-1861.05,0.0002081,2]
[359272015,1745881850762,-400.0,0.0002081,2]
[359272016,1745881850772,-694.46,0.0002081,2]
[359272017,1745881850782,-400.0,0.0002081,2]
[359272018,1745881850792,-443.93,0.0002081,2]
[359272019,1745881850802,-400.0,0.0002081,2]
[359272020,1745881850812,-496.4356542,0.0002081,2]
[359272021,1745881850822,-1052.18,0.0002081,2]
[359272022,1745881850832,-201.92792404,0.0002081,2]
[359272023,1745881850842,-200.0,0.00020811,2]
[359272024,1745881850851,-151.0,0.00020814,2]
[359272025,1745881850861,-400.0,0.00020814,2]
[359272026,1745881850871,-500.0,0.00020814,2]
[359272027,1745881850880,-164.96627017,0.00020814,2]
[359272028,1745881850891,-632.19,0.00020814,2]
[359272029,1745881850901,-400.0,0.00020814,2]
[359272030,1745881850910,-874.36,0.00020814,2]
[359272031,1745881850920,-455.13,0.00020814,2]
[359272032,1745881850930,-1082.29,0.00020814,2]
[359272033,1745881850940,-534.32,0.00020814,2]
[359272034,1745881850950,-547.37,0.00020814,2]
[359272035,1745881850960,-400.0,0.00020814,2]
[359272036,1745881850970,-400.0,0.00020814,2]
[359272037,1745881850979,-312.65855366,0.00020814,2]
[359272038,1745881850989,-400.0,0.00020814,2]
[359272039,1745881850999,-200.0,0.00020814,2]
[359272040,1745881851009,-200.0,0.00020814,2]
[359272041,1745881851019,-675.853895,0.00020814,2]
[359272042,1745881851028,-675.853895,0.00020814,2]
[359272043,1745881851038,-362.25281547,0.00020873,2]
[359272044,1745881851048,-310.59678541,0.00020873,2]
[359272045,1745881851057,-500.0,0.00020873,2]
[359272046,1745881851067,-220.12324801,0.00020873,2]
[359272047,1745881851077,-3215.02177542,0.00020887,2]
[359272048,1745881851087,-151.0,0.000209,4]
[359272049,1745881851097,-151.0,0.000209,3]
[359272050,1745881851107,-400.0,0.00020984,2]
[359272051,1745881851116,-656.42,0.00020984,2]
[359272052,1745881851126,-400.0,0.00020984,2]
[359272053,1745881851136,-1074.84,0.00020984,2]
[359272054,1745881851147,-98.69944355,0.00020984,2]
[359272071,1745881894383,1000.0,0.00022,30]
[359272075,1745881971331,-899.0,0.000187,2]
[359272076,1745882038018,-101.0,0.000187,2]
[359272077,1745882038039,-50.0,0.00019178,2]
[359272083,1745882176538,-1000.0,0.00019078,2]
[359272084,1745882176559,-158.6676885,0.0001916,2]
[359272085,1745882176580,-11.3323115,0.00019178,2]
[359272086,1745882246133,-5369.96822729,0.000186,2]
[359272087,1745882246156,-300.0,0.00019077,2]
[359272088,1745882246179,-23873.55025786,0.00019078,2]
[359272089,1745882246201,-14.48151485,0.00019178,2]
[359272092,1745882404246,-857.4467846,0.00019154,2]
[359272093,1745882404269,-96.38078465,0.00019178,2]
[359272094,1745882404291,-915.17243075,0.00019178,2]
[359272102,1745882918490,573.59120654,0.000149,2]
[359272109,1745882922049,916.93516469,0.00015,2]
[359272144,1745883032262,-63.96709245,0.00019178,2]
[359272145,1745883032272,-1656.14392249,0.00020059,2]
[359272147,1745883032282,-251.0,0.00020143,2]
[359272149,1745883032292,-300.0,0.00020143,2]
[359272151,1745883032301,-300.0,0.00020143,2]
[359272153,1745883032311,-2499.56,0.00020144,3]
[359272154,1745883032320,-1249.78,0.00020144,3]
[359272157,1745883032329,-624.89,0.00020144,3]
[359272160,1745883032339,-156.22,0.00020146,3]
[359272162,1745883032348,-468.7,0.00020146,3]
[359272164,1745883032357,-312.44,0.00020149,3]
[359272165,1745883032366,-18071.01970886,0.00020149,2]
[359272167,1745883032375,-300.0,0.00020152,2]
[359272168,1745883032385,-300.0,0.00020152,2]
[359272170,1745883032394,-300.0,0.00020152,2]
[359272172,1745883032403,-300.0,0.00020152,2]
[359272173,1745883032416,-400.0,0.00020152,2]
[359272175,1745883032425,-247.42803466,0.00020152,2]
[359272176,1745883032435,-500.0,0.00020152,2]
[359272178,1745883032445,-500.0,0.00020152,2]
[359272179,1745883032455,-588.60591055,0.00020152,2]
[359272181,1745883032464,-500.0,0.00020152,2]
[359272183,1745883032473,-500.0,0.00020152,2]
[359272184,1745883032483,-500.0,0.00020152,2]
[359272186,1745883032492,-600.0,0.00020152,2]
[359272187,1745883032502,-500.0,0.00020152,2]
[359272189,1745883032511,-630.14145679,0.00020152,2]
[359272191,1745883032521,-293.88730951,0.00020152,2]
[359272192,1745883032530,-500.0,0.00020152,2]
[359272194,1745883032539,-500.0,0.00020152,2]
[359272196,1745883032549,-500.0,0.00020152,2]
[359272197,1745883032558,-500.0,0.00020152,2]
[359272199,1745883032568,-630.14145679,0.00020152,2]
[359272200,1745883032577,-500.0,0.00020152,2]
[359272202,1745883032587,-500.0,0.00020152,2]
[359272204,1745883032596,-500.0,0.00020152,2]
[359272205,1745883032604,-500.0,0.00020152,2]
[359272207,1745883032613,-630.14145679,0.00020152,2]
[359272208,1745883032623,-500.0,0.00020152,2]
[359272210,1745883032632,-500.0,0.00020152,2]
[359272211,1745883032641,-630.14145679,0.00020152,2]
[359272213,1745883032651,-631.91209329,0.00020152,2]
[359272215,1745883032660,-630.14145679,0.00020152,2]
[359272216,1745883032670,-630.14145679,0.00020152,2]
[359272218,1745883032679,-630.14145679,0.00020152,2]
[359272220,1745883032688,-630.14145679,0.00020152,2]
[359272221,1745883032698,-630.14145679,0.00020152,2]
[359272223,1745883032707,-630.14145679,0.00020152,2]
[359272225,1745883032716,-630.14145679,0.00020152,2]
[359272226,1745883032725,-630.14145679,0.00020152,2]
[359272228,1745883032734,-630.14145679,0.00020152,2]
[359272230,1745883032742,-630.14145679,0.00020152,2]
[359272231,1745883032753,-630.14145679,0.00020152,2]
[359272233,1745883032761,-630.14145679,0.00020152,2]
[359272235,1745883032770,-630.14145679,0.00020152,2]
[359272236,1745883032779,-630.14145679,0.00020152,2]
[359272238,1745883032788,-630.14145679,0.00020152,2]
[359272240,1745883032797,-630.14145679,0.00020152,2]
[359272242,1745883032807,-630.14145679,0.00020152,2]
[359272243,1745883032816,-630.14145679,0.00020152,2]
[359272245,1745883032825,-630.14145679,0.00020152,2]
[359272247,1745883032834,-630.14145679,0.00020152,2]
[359272248,1745883032843,-630.14145679,0.00020152,2]
[359272250,1745883032852,-500.0,0.00020152,2]
[359272252,1745883032861,-500.0,0.00020152,2]
[359272253,1745883032870,-305.17329189,0.00020152,2]
[359272255,1745883032880,-500.0,0.00020152,2]
[359272257,1745883032889,-500.0,0.00020152,2]
[359272259,1745883032898,-500.0,0.00020152,2]
[359272260,1745883032908,-500.0,0.00020152,2]
[359272262,1745883032917,-500.0,0.00020152,2]
[359272264,1745883032927,-500.0,0.00020152,2]
[359272266,1745883032937,-500.0,0.00020152,2]
[359272267,1745883032946,-500.0,0.00020152,2]
[359272269,1745883032956,-500.0,0.00020152,2]
[359272271,1745883032965,-500.0,0.00020152,2]
[359272272,1745883032975,-500.0,0.00020152,2]
[359272274,1745883032984,-500.0,0.00020152,2]
[359272276,1745883032994,-500.0,0.00020152,2]
[359272278,1745883033003,-500.0,0.00020152,2]
[359272279,1745883033013,-500.0,0.00020152,2]
[359272281,1745883033022,-500.0,0.00020152,2]
[359272283,1745883033032,-650.0,0.00020152,2]
[359272284,1745883033042,-500.0,0.00020152,2]
[359272286,1745883033052,-500.0,0.00020152,2]
[359272289,1745883033072,-500.0,0.00020152,2]
[359272290,1745883033082,-500.0,0.00020152,2]
[359272292,1745883033092,-358.06398772,0.00020152,2]
[359272294,1745883033102,-2396.75931995,0.00020152,2]
[359272296,1745883033112,-2396.75931995,0.00020152,2]
[359272297,1745883033122,-2396.75931995,0.00020152,2]
[359272299,1745883033132,-2396.75931995,0.00020152,2]
[359272301,1745883033142,-2396.75931995,0.00020152,2]
[359272303,1745883033152,-2396.75931995,0.00020152,2]
[359272304,1745883033162,-2396.75931995,0.00020152,2]
[359272306,1745883033172,-2396.75931995,0.00020152,2]
[359272308,1745883033181,-2396.75931995,0.00020152,2]
[359272309,1745883033191,-2396.75931995,0.00020152,2]
[359272311,1745883033200,-2396.75931995,0.00020152,2]
[359272313,1745883033211,-2396.75931995,0.00020152,2]
[359272315,1745883033220,-2396.75931995,0.00020152,2]
[359272316,1745883033230,-2396.75931995,0.00020152,2]
[359272318,1745883033240,-2396.75931995,0.00020152,2]
[359272320,1745883033250,-2396.75931995,0.00020152,2]
[359272321,1745883033260,-1474.08821688,0.00020152,2]
[359272323,1745883033275,-922.67110307,0.00020152,2]
[359272325,1745883033285,-2396.75931995,0.00020152,2]
[359272327,1745883033294,-1926.83532098,0.00020152,2]
[359272485,1745883038191,-518.23244624,0.00020152,2]
[359272486,1745883038201,-400.0,0.00020152,2]
[359272487,1745883038211,-469.92399897,0.00020152,2]
[359272488,1745883038220,-183.04275799,0.00020152,2]
[359272489,1745883038232,-686.54162431,0.00020152,2]
[359272490,1745883038243,-1000.0,0.00020152,2]
[359272491,1745883038255,-402.55363394,0.00020152,2]
[359272492,1745883038266,-124.62130371,0.00020152,2]
[359272493,1745883038276,-2396.75931995,0.00020152,2]
[359272494,1745883038285,-2396.75931995,0.00020152,2]
[359272495,1745883038295,-509.81969686,0.00020152,2]
[359272496,1745883038318,-1886.93962309,0.00020152,2]
[359272497,1745883038327,-2396.75931995,0.00020152,2]
[359272498,1745883038336,-1257.44806883,0.00020152,2]
[359272500,1745883038347,-1139.31125112,0.00020152,2]
[359272501,1745883038357,-2427.48700353,0.00020152,2]
[359272502,1745883038366,-2427.48700353,0.00020152,2]
[359272503,1745883038375,-2427.48700353,0.00020152,2]
[359272504,1745883038384,-2427.48700353,0.00020152,2]
[359272505,1745883038394,-2427.48700353,0.00020152,2]
[359272506,1745883038403,-2427.48700353,0.00020152,2]
[359272507,1745883038414,-2427.48700353,0.00020152,2]
[359272508,1745883038424,-2427.48700353,0.00020152,2]
[359272509,1745883038433,-2427.48700353,0.00020152,2]
[359272510,1745883038442,-2427.48700353,0.00020152,2]
[359272511,1745883038451,-2427.48700353,0.00020152,2]
[359272512,1745883038462,-2427.48700353,0.00020152,2]
[359272513,1745883038471,-2427.48700353,0.00020152,2]
[359272514,1745883038480,-2427.48700353,0.00020152,2]
[359272515,1745883038491,-2427.48700353,0.00020152,2]
[359272516,1745883038500,-2427.48700353,0.00020152,2]
[359272517,1745883038509,-2427.48700353,0.00020152,2]
[359272518,1745883038518,-2427.48700353,0.00020152,2]
[359272519,1745883038527,-4303.27241535,0.00020152,2]
[359272520,1745883038537,-4303.27241535,0.00020152,2]
[359272521,1745883038546,-4303.27241535,0.00020152,2]
[359272522,1745883038555,-4303.27241535,0.00020152,2]
[359272523,1745883038564,-4303.27241535,0.00020152,2]
[359272524,1745883038573,-4303.27241535,0.00020152,2]
[359272525,1745883038582,-4303.27241535,0.00020152,2]
[359272526,1745883038591,-4303.27241535,0.00020152,2]
[359272527,1745883038601,-4303.27241535,0.00020152,2]
[359272528,1745883038610,-4303.27241535,0.00020152,2]
[359272529,1745883038619,-4303.27241535,0.00020152,2]
[359272530,1745883038628,-4303.27241535,0.00020152,2]
[359272531,1745883038637,-400.0,0.00020153,2]
[359272532,1745883038647,-732.58,0.00020153,2]
[359272533,1745883038656,-862.11,0.00020153,2]
[359272534,1745883038665,-782.38,0.00020153,2]
[359272535,1745883038675,-2112.41,0.00020153,2]
[359272536,1745883038684,-400.0,0.00020153,2]
[359272537,1745883038693,-2763.97,0.00020153,2]
[359272538,1745883038702,-500.0,0.00020153,2]
[359272539,1745883038712,-4001.17,0.00020154,2]
[359272540,1745883038721,-400.0,0.00020154,2]
[359272541,1745883038731,-1090.58,0.00020154,2]
[359272542,1745883038740,-400.0,0.00020154,2]
[359272543,1745883038749,-318.58755883,0.00020154,2]
[359272550,1745883040737,-627.57244117,0.00020154,2]
[359272551,1745883040746,-400.0,0.00020154,2]
[359272552,1745883040755,-1669.42755875,0.00020154,2]
[359272553,1745883040769,-4408.88244125,0.00020154,2]
[359272554,1745883040778,-364.94945327,0.00020154,2]
[359272555,1745883040789,-915.65054673,0.00020154,2]
[359272556,1745883040798,-400.0,0.00020154,2]
[359272557,1745883040807,-400.0,0.00020154,2]
[359272558,1745883040816,-779.55,0.00020154,2]
[359272559,1745883040825,-2170.3,0.00020154,2]
[359272560,1745883040835,-400.0,0.00020154,2]
[359272561,1745883040843,-836.2,0.00020154,2]
[359272562,1745883040852,-400.0,0.00020154,2]
[359272563,1745883040862,-400.0,0.00020154,2]
[359272564,1745883040871,-400.0,0.00020155,2]
[359272565,1745883040880,-5764.75,0.00020155,2]
[359272566,1745883040889,-2206.69,0.00020155,2]
[359272567,1745883040898,-400.0,0.00020155,2]
[359272568,1745883040908,-400.0,0.00020155,2]
[359272569,1745883040918,-400.0,0.00020155,2]
[359272570,1745883040927,-557.95,0.00020155,2]
[359272571,1745883040937,-8.86067623,0.00020155,2]
[359272577,1745883044318,-640.79,0.00020154,2]
[359272578,1745883044327,-1240.98932377,0.00020155,2]
[359272579,1745883044338,-400.0,0.00020156,2]
[359272580,1745883044350,-494.54339249,0.00020156,2]
[359272581,1745883044360,-400.0,0.00020156,2]
[359272582,1745883044369,-505.81196952,0.00020156,2]
[359272583,1745883044382,-0.85803048,0.00020156,2]
[359272584,1745883044391,-767.75,0.00020156,2]
[359272585,1745883044400,-400.0,0.00020156,2]
[359272586,1745883044411,-400.0,0.00020156,2]
[359272587,1745883044423,-400.0,0.00020156,2]
[359272588,1745883044433,-464.01395744,0.00020156,2]
[359272589,1745883044442,-334.9815612,0.00020156,2]
[359272590,1745883044455,-601.5384388,0.00020156,2]
[359272591,1745883044464,-400.0,0.00020156,2]
[359272592,1745883044474,-400.0,0.00020156,2]
[359272593,1745883044484,-400.0,0.00020156,2]
[359272594,1745883044495,-402.24,0.00020156,2]
[359272595,1745883044505,-475.61,0.00020156,2]
[359272596,1745883044515,-381.69850642,0.00020156,2]
[359272597,1745883044529,-783.84149358,0.00020156,2]
[359272598,1745883044538,-8.02567854,0.00020156,2]
[359272599,1745883044554,-530.9742743,0.00020156,2]
[359272600,1745883044577,-308.82834252,0.00020156,2]
[359272601,1745883044589,-30.72170464,0.00020156,2]
[359272602,1745883044598,-729.25,0.00020156,2]
[359272603,1745883044608,-710.55,0.00020156,2]
[359272604,1745883044617,-400.0,0.00020156,2]
[359272605,1745883044627,-216.33178226,0.00020156,2]
[359272606,1745883044639,-183.66821774,0.00020156,2]
[359272607,1745883044648,-860.02,0.00020156,2]
[359272608,1745883044658,-772.18,0.00020156,2]
[359272609,1745883044668,-400.0,0.00020156,2]
[359272610,1745883044677,-400.0,0.00020156,2]
[359272611,1745883044687,-409.88,0.00020156,2]
[359272612,1745883044696,-400.0,0.00020156,2]
[359272613,1745883044705,-479.04,0.00020156,2]
[359272614,1745883044714,-400.0,0.00020156,2]
[359272615,1745883044724,-400.0,0.00020156,2]
[359272616,1745883044733,-456.04,0.00020156,2]
[359272617,1745883044743,-931.54571807,0.00020156,2]
[359272622,1745883046565,-46.69428193,0.00020156,2]
[359272623,1745883046575,-400.0,0.00020156,2]
[359272624,1745883046584,-1150.28,0.00020156,2]
[359272625,1745883046593,-400.0,0.00020156,2]
[359272626,1745883046603,-400.0,0.00020156,2]
[359272627,1745883046612,-1831.64,0.00020156,2]
[359272628,1745883046622,-400.0,0.00020156,2]
[359272629,1745883046632,-400.0,0.00020156,2]
[359272630,1745883046641,-400.0,0.00020156,2]
[359272631,1745883046651,-422.7349726,0.00020156,2]
[359272632,1745883046662,-642.55,0.00020156,2]
[359272633,1745883046671,-419.13,0.00020156,2]
[359272635,1745883046681,-1546.75,0.00020156,2]
[359272636,1745883046690,-400.0,0.00020156,2]
[359272637,1745883046699,-400.0,0.00020156,2]
[359272638,1745883046708,-500.0,0.00020156,2]
[359272639,1745883046718,-599.56,0.00020156,2]
[359272640,1745883046727,-400.0,0.00020156,2]
[359272641,1745883046736,-400.0,0.00020156,2]
[359272642,1745883046745,-400.0,0.00020156,2]
[359272643,1745883046755,-400.0,0.00020156,2]
[359272644,1745883046764,-400.0,0.00020156,2]
[359272645,1745883046774,-400.0,0.00020156,2]
[359272646,1745883046783,-640.86,0.00020156,2]
[359272647,1745883046792,-400.0,0.00020156,2]
[359272648,1745883046802,-577.9,0.00020156,2]
[359272649,1745883046811,-400.0,0.00020156,2]
[359272650,1745883046820,-284.66570957,0.00020156,2]
[359272651,1745883046832,-15.33429043,0.00020156,2]
[359272652,1745883046842,-400.0,0.00020156,2]
[359272653,1745883046851,-285.02570967,0.00020156,2]
[359272654,1745883046865,-637.71429033,0.00020156,2]
[359272655,1745883046874,-301.40981562,0.00020156,2]
[359272656,1745883046884,-506.63,0.00020156,2]
[359272657,1745883046894,-400.0,0.00020156,2]
[359272658,1745883046903,-400.0,0.00020159,2]
[359272659,1745883046914,-723.57,0.00020159,2]
[359272660,1745883046923,-400.0,0.00020159,2]
[359272661,1745883046932,-253.39745666,0.00020159,2]
[359272662,1745883046941,-300.0,0.00020159,2]
[359272663,1745883046951,-300.0,0.00020159,2]
[359272664,1745883046960,-400.0,0.00020159,2]
[359272665,1745883046970,-300.0,0.00020159,2]
[359272666,1745883046979,-400.0,0.00020159,2]
[359272667,1745883046988,-400.0,0.00020159,2]
[359272668,1745883046998,-400.0,0.00020159,2]
[359272669,1745883047008,-400.0,0.00020159,2]
[359272670,1745883047018,-400.0,0.00020159,2]
[359272671,1745883047027,-400.0,0.00020159,2]
[359272672,1745883047036,-400.0,0.00020159,2]
[359272673,1745883047046,-400.0,0.00020159,2]
[359272674,1745883047055,-300.0,0.00020159,2]
[359272675,1745883047064,-400.0,0.00020159,2]
[359272676,1745883047073,-400.0,0.00020159,2]
[359272677,1745883047082,-400.0,0.00020159,2]
[359272678,1745883047092,-400.0,0.00020159,2]
[359272679,1745883047101,-300.0,0.00020159,2]
[359272680,1745883047110,-400.0,0.00020159,2]
[359272681,1745883047119,-485.01,0.00020159,2]
[359272682,1745883047128,-849.46,0.00020159,2]
[359272684,1745883047310,-204.77796092,0.00020159,2]
[359272685,1745883047320,-400.0,0.00020159,2]
[359272686,1745883047330,-172.63894208,0.00020159,2]
[359272687,1745883047339,-300.0,0.00020159,2]
[359272688,1745883047348,-300.0,0.00020159,2]
[359272689,1745883047358,-300.0,0.00020159,2]
[359272690,1745883047367,-400.0,0.00020159,2]
[359272691,1745883047377,-362.71,0.00020159,2]
[359272692,1745883047386,-400.0,0.00020159,2]
[359272693,1745883047396,-400.0,0.00020159,2]
[359272694,1745883047405,-400.0,0.00020159,2]
[359272695,1745883047415,-400.0,0.00020159,2]
[359272696,1745883047427,-400.0,0.00020159,2]
[359272697,1745883047436,-400.0,0.00020159,2]
[359272698,1745883047445,-400.0,0.00020159,2]
[359272699,1745883047454,-400.0,0.00020159,2]
[359272700,1745883047464,-400.0,0.00020159,2]
[359272701,1745883047473,-400.0,0.00020159,2]
[359272702,1745883047483,-400.0,0.00020159,2]
[359272703,1745883047492,-400.0,0.00020159,2]
[359272704,1745883047501,-400.0,0.00020159,2]
[359272705,1745883047511,-400.0,0.00020159,2]
[359272706,1745883047520,-400.0,0.00020159,2]
[359272707,1745883047529,-400.0,0.00020159,2]
[359272708,1745883047539,-502.40193378,0.00020159,2]
[359272709,1745883047548,-400.0,0.00020159,2]
[359272710,1745883047557,-400.0,0.00020159,2]
[359272711,1745883047566,-400.0,0.00020159,2]
[359272712,1745883047575,-400.0,0.00020159,2]
[359272713,1745883047585,-400.0,0.00020159,2]
[359272714,1745883047594,-400.0,0.00020159,2]
[359272715,1745883047603,-400.0,0.00020159,2]
[359272716,1745883047612,-400.0,0.00020159,2]
[359272717,1745883047622,-365.13109873,0.00020159,2]
[359272718,1745883047631,-400.0,0.00020159,2]
[359272719,1745883047641,-400.0,0.00020159,2]
[359272720,1745883047651,-330.96610544,0.00020159,2]
[359272721,1745883047672,-69.03389456,0.00020159,2]
[359272722,1745883047681,-796.52730867,0.00020159,2]
[359272723,1745883047692,-1685.04269133,0.00020159,2]
[359272724,1745883047701,-1192.61,0.00020159,2]
[359272725,1745883047711,-400.0,0.00020159,2]
[359272726,1745883047720,-547.70956216,0.00020159,2]
[359272727,1745883047729,-731.85,0.00020159,2]
[359272728,1745883047738,-400.0,0.00020159,2]
[359272729,1745883047748,-629.37,0.00020159,2]
[359272730,1745883047757,-400.0,0.00020159,2]
[359272731,1745883047766,-362.24877253,0.00020159,2]
[359272736,1745883180968,-538.39010005,0.00019078,2]
[359272737,1745883180992,-875.488785,0.00019153,2]
[359272738,1745883181017,-71.12111495,0.00019178,2]
[359272747,1745883447485,-250.0,0.00019078,2]
[359272748,1745883447506,-52.0,0.00019178,2]
[359272755,1745883718030,-8781.2736213,0.00019153,2]
[359272756,1745883718052,-48.7263787,0.00019178,2]
[359272757,1745883761896,1000.0,0.00022,30]
[359272767,1745883845001,1000.0,0.00022,30]
[359272768,1745883909461,500.0,0.00022,30]
[359272791,1745884126829,-2772.0,0.00019132,2]
[359272815,1745884232282,-148.4584162,0.00019132,2]
[359272817,1745884232292,-1391.51205074,0.000199,2]
[359272820,1745884232302,-1002.3228381,0.0002,3]
[359272822,1745884232315,-1845.58338504,0.00020051,2]
[359272824,1745884232326,-403.57,0.00020143,3]
[359272826,1745884232336,-201.79,0.00020143,3]
[359272828,1745884232346,-605.38,0.00020143,3]
[359272829,1745884232356,-300.0,0.00020144,2]
[359272830,1745884232365,-300.0,0.00020144,2]
[359272832,1745884232375,-1614.29,0.00020145,3]
[359272834,1745884232385,-807.15,0.00020145,3]
[359272836,1745884232395,-152.0,0.00020149,2]
[359272838,1745884232404,-34983.38905257,0.0002015,2]
[359272840,1745884232417,-5055.96887672,0.0002015,2]
[359272842,1745884232429,-1841.9184688,0.0002015,2]
[359272845,1745884232441,-293.61015655,0.0002015,2]
[359272847,1745884232453,-350.6230378,0.0002015,2]
[359273026,1745884240769,-500.0,0.00020149,2]
[359273028,1745884240778,-54.89270735,0.00020149,2]
[359273031,1745884240790,-220.31848764,0.00020149,2]
[359273033,1745884240799,-636.87112144,0.00020149,2]
[359273034,1745884240808,-500.0,0.00020149,2]
[359273037,1745884240818,-500.0,0.00020149,2]
[359273038,1745884240827,-500.0,0.00020149,2]
[359273040,1745884240836,-500.0,0.00020149,2]
[359273043,1745884240846,-162.00710975,0.00020149,2]
[359273045,1745884240855,-500.0,0.00020149,2]
[359273047,1745884240864,-500.0,0.00020149,2]
[359273048,1745884240874,-500.0,0.00020149,2]
[359273051,1745884240883,-155.59945173,0.00020149,2]
[359273052,1745884240893,-500.0,0.00020149,2]
[359273053,1745884240902,-500.0,0.00020149,2]
[359273054,1745884240911,-500.0,0.00020149,2]
[359273055,1745884240920,-500.0,0.00020149,2]
[359273056,1745884240929,-500.0,0.00020149,2]
[359273057,1745884240938,-500.0,0.00020149,2]
[359273059,1745884240947,-438.96415255,0.00020149,2]
[359273142,1745884244800,-41.55317664,0.00020149,2]
[359273143,1745884244809,-500.0,0.00020149,2]
[359273144,1745884244819,-591.25277258,0.00020149,2]
[359273145,1745884244828,-500.0,0.00020149,2]
[359273146,1745884244838,-500.0,0.00020149,2]
[359273148,1745884244848,-500.0,0.00020149,2]
[359273149,1745884244858,-500.0,0.00020149,2]
[359273151,1745884244867,-500.0,0.00020149,2]
[359273153,1745884244878,-500.0,0.00020149,2]
[359273155,1745884244887,-500.0,0.00020149,2]
[359273156,1745884244896,-500.0,0.00020149,2]
[359273158,1745884244905,-500.0,0.00020149,2]
[359273160,1745884244914,-500.0,0.00020149,2]
[359273161,1745884244924,-500.0,0.00020149,2]
[359273162,1745884244934,-500.0,0.00020149,2]
[359273163,1745884244943,-500.0,0.00020149,2]
[359273164,1745884244952,-500.0,0.00020149,2]
[359273165,1745884244961,-500.0,0.00020149,2]
[359273166,1745884244971,-500.0,0.00020149,2]
[359273167,1745884244980,-191.25277258,0.00020149,2]
[359273168,1745884244989,-500.0,0.00020149,2]
[359273169,1745884244998,-500.0,0.00020149,2]
[359273170,1745884245008,-27537.88606365,0.0002015,2]
[359273171,1745884245020,-6143.45331048,0.0002015,2]
[359273172,1745884245031,-23773.93460642,0.0002015,2]
[359273173,1745884245042,-1058.35366644,0.0002015,2]
[359273176,1745884246467,-2289.7943727,0.0002015,2]
[359273177,1745884246479,-14177.49613032,0.0002015,2]
[359273178,1745884246565,-0.31928287,0.0002015,2]
[359273184,1745884383250,-400.0,0.00019151,2]
[359273191,1745884647990,-24900.0,0.00019146,2]
[359273192,1745884648012,-24.0,0.00019151,2]